[Event "Late-Titled-Tuesday-Blitz-August-29-2023"]
[Site "Chess.com"]
[Date "2023.08.29"]
[Round "3"]
[White "lupta_robin"]
[Black "Zhigalko_Sergei"]
[Result "0-1"]
[WhiteElo "2633"]
[BlackElo "2932"]
[TimeControl "180+1"]
[EndTime "14:27:43 PDT"]
[Termination "Zhigalko_Sergei won on time"]

1. b3 {[%clk 0:03:00.9]} 1... e5 {[%clk 0:02:58.7]} 2. Bb2 {[%clk 0:03:01.3]}
2... d6 {[%clk 0:02:58.1]} 3. e3 {[%clk 0:03:01.5]} 3... Nf6 {[%clk 0:02:58.4]}
4. d4 {[%clk 0:02:59.6]} 4... e4 {[%clk 0:02:56.1]} 5. d5 {[%clk 0:02:59.8]}
5... c6 {[%clk 0:02:55.8]} 6. c4 {[%clk 0:02:56.8]} 6... Na6 {[%clk 0:02:56]} 7.
Nc3 {[%clk 0:02:55.5]} 7... Be7 {[%clk 0:02:44.9]} 8. Nge2 {[%clk 0:02:51.7]}
8... Nc5 {[%clk 0:02:43.5]} 9. Nf4 {[%clk 0:02:47.9]} 9... a5 {[%clk 0:02:42.5]}
10. Be2 {[%clk 0:02:44.1]} 10... O-O {[%clk 0:02:42.3]} 11. h4 {[%clk
0:02:33.4]} 11... Qb6 {[%clk 0:02:34.2]} 12. Qd4 {[%clk 0:02:23.6]} 12... a4
{[%clk 0:02:29.1]} 13. Nxe4 {[%clk 0:02:09.2]} 13... axb3 {[%clk 0:02:20.7]} 14.
axb3 {[%clk 0:01:54]} 14... Rxa1+ {[%clk 0:02:14.9]} 15. Bxa1 {[%clk 0:01:51.9]}
15... Qxb3 {[%clk 0:02:04.5]} 16. Nxc5 {[%clk 0:01:40.8]} 16... dxc5 {[%clk
0:02:01.5]} 17. Qb2 {[%clk 0:01:33.6]} 17... Qxb2 {[%clk 0:01:45.6]} 18. Bxb2
{[%clk 0:01:34.5]} 18... cxd5 {[%clk 0:01:46.1]} 19. Bxf6 {[%clk 0:01:02.6]}
19... Bxf6 {[%clk 0:01:47]} 20. Nxd5 {[%clk 0:01:02.9]} 20... Be6 {[%clk
0:01:29]} 21. Nxf6+ {[%clk 0:01:01.2]} 21... gxf6 {[%clk 0:01:29.1]} 22. f3
{[%clk 0:00:54.3]} 22... Ra8 {[%clk 0:01:26.9]} 23. Kf2 {[%clk 0:00:43.5]} 23...
Ra2 {[%clk 0:01:26.6]} 24. Rc1 {[%clk 0:00:44]} 24... Kf8 {[%clk 0:01:20.9]} 25.
e4 {[%clk 0:00:40.4]} 25... Ke7 {[%clk 0:01:19]} 26. Ke3 {[%clk 0:00:40.9]}
26... Kd6 {[%clk 0:01:18.4]} 27. Rb1 {[%clk 0:00:39.2]} 27... Kc7 {[%clk
0:01:15]} 28. Rc1 {[%clk 0:00:38.8]} 28... Rb2 {[%clk 0:00:55.4]} 29. g4 {[%clk
0:00:38.1]} 29... h6 {[%clk 0:00:54.7]} 30. h5 {[%clk 0:00:14.4]} 30... Kb6
{[%clk 0:00:48.8]} 31. Bd3 {[%clk 0:00:10.4]} 31... Ka5 {[%clk 0:00:41.3]} 32.
Ra1+ {[%clk 0:00:10.7]} 32... Kb4 {[%clk 0:00:41.1]} 33. Ra7 {[%clk 0:00:11.1]}
33... Kc3 {[%clk 0:00:41.2]} 34. Ra5 {[%clk 0:00:06.7]} 34... b6 {[%clk
0:00:39.4]} 35. Ra7 {[%clk 0:00:06.9]} 35... Rb3 {[%clk 0:00:31.2]} 36. Ke2
{[%clk 0:00:01.9]} 36... Kd4 {[%clk 0:00:29.9]} 37. Rc7 {[%clk 0:00:01.2]} 37...
Rxd3 {[%clk 0:00:28.9]} 0-1

[Event "Late-Titled-Tuesday-Blitz-August-29-2023"]
[Site "Chess.com"]
[Date "2023.08.29"]
[Round "3"]
[White "IngOscarArdila"]
[Black "Tejas_Rama"]
[Result "0-1"]
[WhiteElo "2310"]
[BlackElo "2540"]
[TimeControl "180+1"]
[EndTime "14:27:43 PDT"]
[Termination "Tejas_Rama won by checkmate"]

1. d4 {[%clk 0:03:00.2]} 1... Nf6 {[%clk 0:02:59.2]} 2. c4 {[%clk 0:03:00.5]}
2... e6 {[%clk 0:02:58]} 3. Nc3 {[%clk 0:02:59.1]} 3... Bb4 {[%clk 0:02:53]} 4.
Bd2 {[%clk 0:02:59.4]} 4... O-O {[%clk 0:02:52.5]} 5. Nf3 {[%clk 0:02:59.7]}
5... d5 {[%clk 0:02:51]} 6. e3 {[%clk 0:02:59]} 6... b6 {[%clk 0:02:49.2]} 7.
cxd5 {[%clk 0:02:58.5]} 7... exd5 {[%clk 0:02:47.8]} 8. Bd3 {[%clk 0:02:58.8]}
8... Bd6 {[%clk 0:02:43]} 9. Nb5 {[%clk 0:02:56.4]} 9... Be7 {[%clk 0:02:41.1]}
10. Qc2 {[%clk 0:02:56]} 10... c6 {[%clk 0:02:32.1]} 11. Nc3 {[%clk 0:02:55.8]}
11... Bb7 {[%clk 0:02:27.7]} 12. Ne5 {[%clk 0:02:55.5]} 12... c5 {[%clk
0:02:27.4]} 13. O-O {[%clk 0:02:53.8]} 13... Nc6 {[%clk 0:02:24.8]} 14. Nxc6
{[%clk 0:02:21.2]} 14... Bxc6 {[%clk 0:02:23.9]} 15. Rfc1 {[%clk 0:02:10.5]}
15... c4 {[%clk 0:02:04]} 16. Bf5 {[%clk 0:02:06.9]} 16... g6 {[%clk 0:02:03.2]}
17. Bh3 {[%clk 0:02:04.9]} 17... b5 {[%clk 0:02:02.7]} 18. a3 {[%clk 0:02:04.5]}
18... a5 {[%clk 0:01:57.5]} 19. f3 {[%clk 0:02:00]} 19... b4 {[%clk 0:01:54.5]}
20. axb4 {[%clk 0:01:59.9]} 20... axb4 {[%clk 0:01:55]} 21. Ne2 {[%clk 0:02:00]}
21... Qb6 {[%clk 0:01:25.9]} 22. Kh1 {[%clk 0:01:58.2]} 22... Qb7 {[%clk
0:01:20.5]} 23. Be1 {[%clk 0:01:57.3]} 23... Rxa1 {[%clk 0:01:13.1]} 24. Rxa1
{[%clk 0:01:57]} 24... Ra8 {[%clk 0:01:11.9]} 25. Qd1 {[%clk 0:01:55.2]} 25...
Bf8 {[%clk 0:01:00.9]} 26. Bh4 {[%clk 0:01:54.7]} 26... Ne8 {[%clk 0:00:57.5]}
27. Nf4 {[%clk 0:01:41.3]} 27... Nd6 {[%clk 0:00:56.6]} 28. Bf6 {[%clk
0:01:38.4]} 28... Bh6 {[%clk 0:00:45.2]} 29. Be5 {[%clk 0:01:34.6]} 29... Ne8
{[%clk 0:00:43]} 30. Rxa8 {[%clk 0:01:00.7]} 30... Qxa8 {[%clk 0:00:42.3]} 31.
e4 {[%clk 0:00:50]} 31... Bxf4 {[%clk 0:00:31]} 32. Bxf4 {[%clk 0:00:49.4]}
32... dxe4 {[%clk 0:00:31.2]} 33. fxe4 {[%clk 0:00:42.4]} 33... Bxe4 {[%clk
0:00:32.1]} 34. Qe1 {[%clk 0:00:39.8]} 34... Nf6 {[%clk 0:00:27.9]} 35. Be5
{[%clk 0:00:38.6]} 35... Nd5 {[%clk 0:00:22.9]} 36. Kg1 {[%clk 0:00:25.8]} 36...
f5 {[%clk 0:00:14.3]} 37. Qh4 {[%clk 0:00:22.2]} 37... Qa1+ {[%clk 0:00:13.9]}
38. Kf2 {[%clk 0:00:22.5]} 38... Qxb2+ {[%clk 0:00:13.9]} 39. Kg3 {[%clk
0:00:23.1]} 39... Qc3+ {[%clk 0:00:12.6]} 40. Kf2 {[%clk 0:00:23.6]} 40... Qe3+
{[%clk 0:00:11.4]} 41. Kf1 {[%clk 0:00:22.8]} 41... Bd3# {[%clk 0:00:11.5]} 0-1

[Event "Late-Titled-Tuesday-Blitz-August-29-2023"]
[Site "Chess.com"]
[Date "2023.08.29"]
[Round "3"]
[White "BozeKat"]
[Black "ural58"]
[Result "0-1"]
[WhiteElo "2092"]
[BlackElo "2521"]
[TimeControl "180+1"]
[EndTime "14:27:43 PDT"]
[Termination "ural58 won on time"]

1. c4 {[%clk 0:03:00.9]} 1... e5 {[%clk 0:02:59.5]} 2. g3 {[%clk 0:03:01]} 2...
c6 {[%clk 0:02:58.6]} 3. Bg2 {[%clk 0:03:00.8]} 3... d5 {[%clk 0:02:57.1]} 4. d4
{[%clk 0:02:56.4]} 4... e4 {[%clk 0:02:53.4]} 5. Nc3 {[%clk 0:02:56]} 5... Bb4
{[%clk 0:02:51.9]} 6. a3 {[%clk 0:02:48.6]} 6... Bxc3+ {[%clk 0:02:49.9]} 7.
bxc3 {[%clk 0:02:49.5]} 7... dxc4 {[%clk 0:02:37.2]} 8. Bxe4 {[%clk 0:02:37.6]}
8... Nf6 {[%clk 0:02:33.8]} 9. Bg5 {[%clk 0:02:37]} 9... h6 {[%clk 0:02:32.5]}
10. Bxf6 {[%clk 0:02:36.1]} 10... Qxf6 {[%clk 0:02:33.4]} 11. Bg2 {[%clk
0:02:17.5]} 11... O-O {[%clk 0:02:32.6]} 12. Nf3 {[%clk 0:02:13.1]} 12... Re8
{[%clk 0:02:31.3]} 13. O-O {[%clk 0:02:13.2]} 13... Bf5 {[%clk 0:02:28.4]} 14.
Ne5 {[%clk 0:02:09.9]} 14... b5 {[%clk 0:02:20.4]} 15. a4 {[%clk 0:02:00.4]}
15... bxa4 {[%clk 0:02:07]} 16. Qxa4 {[%clk 0:01:55.3]} 16... a5 {[%clk
0:02:06.9]} 17. Qxc4 {[%clk 0:01:46]} 17... Ra7 {[%clk 0:02:06.5]} 18. e3 {[%clk
0:01:32]} 18... Rc8 {[%clk 0:01:54.4]} 19. Qc5 {[%clk 0:01:26.1]} 19... Qe7
{[%clk 0:01:44.6]} 20. Qxe7 {[%clk 0:01:23.5]} 20... Rxe7 {[%clk 0:01:44.3]} 21.
Rxa5 {[%clk 0:01:22.1]} 21... c5 {[%clk 0:01:44.5]} 22. Ra8 {[%clk 0:01:15.3]}
22... f6 {[%clk 0:01:42]} 23. Nc6 {[%clk 0:01:03.9]} 23... Nxc6 {[%clk
0:01:40.9]} 24. Rxc8+ {[%clk 0:00:52.1]} 24... Bxc8 {[%clk 0:01:40.6]} 25. Bxc6
{[%clk 0:00:52.6]} 25... Ra7 {[%clk 0:01:38.2]} 26. Rb1 {[%clk 0:00:47.9]} 26...
Kf7 {[%clk 0:01:38.2]} 27. Kg2 {[%clk 0:00:41.5]} 27... Ra3 {[%clk 0:01:36.4]}
28. c4 {[%clk 0:00:37.5]} 28... cxd4 {[%clk 0:01:35.8]} 29. exd4 {[%clk
0:00:37.9]} 29... Rc3 {[%clk 0:01:34.8]} 30. Rb8 {[%clk 0:00:34]} 30... Bf5
{[%clk 0:01:29.8]} 31. Rb7+ {[%clk 0:00:28.6]} 31... Kg6 {[%clk 0:01:29.3]} 32.
Rb4 {[%clk 0:00:20.6]} 32... Bd3 {[%clk 0:01:24.1]} 33. Bd5 {[%clk 0:00:16.9]}
33... h5 {[%clk 0:01:16.4]} 34. h3 {[%clk 0:00:15.5]} 34... Be2 {[%clk
0:01:15.1]} 35. c5 {[%clk 0:00:10.1]} 35... Kf5 {[%clk 0:01:13]} 36. g4+ {[%clk
0:00:09.7]} 36... hxg4 {[%clk 0:01:12.5]} 37. hxg4+ {[%clk 0:00:10.6]} 37...
Kxg4 {[%clk 0:01:12.8]} 38. Be6+ {[%clk 0:00:10.9]} 38... Kg5 {[%clk 0:01:10.9]}
39. Bd5 {[%clk 0:00:09.2]} 39... f5 {[%clk 0:01:10.7]} 40. c6 {[%clk 0:00:09.2]}
40... Kf4 {[%clk 0:01:07.3]} 41. Rb7 {[%clk 0:00:07]} 41... Rc1 {[%clk
0:01:01.5]} 42. c7 {[%clk 0:00:06.3]} 42... Bf1+ {[%clk 0:01:00.5]} 43. Kh2
{[%clk 0:00:06.5]} 43... Ba6 {[%clk 0:00:55.7]} 44. Ra7 {[%clk 0:00:06.1]} 44...
Bc8 {[%clk 0:00:54.7]} 45. Bg2 {[%clk 0:00:03.1]} 45... g5 {[%clk 0:00:48.8]}
46. d5 {[%clk 0:00:03.2]} 46... Ke5 {[%clk 0:00:49.4]} 0-1

[Event "Late-Titled-Tuesday-Blitz-August-29-2023"]
[Site "Chess.com"]
[Date "2023.08.29"]
[Round "3"]
[White "CheckBits"]
[Black "TheMagician"]
[Result "1-0"]
[WhiteElo "2397"]
[BlackElo "2152"]
[TimeControl "180+1"]
[EndTime "14:27:43 PDT"]
[Termination "CheckBits won on time"]

1. e4 {[%clk 0:02:55.2]} 1... c5 {[%clk 0:02:58.9]} 2. c3 {[%clk 0:02:54.7]}
2... e6 {[%clk 0:02:57]} 3. d4 {[%clk 0:02:54.5]} 3... d5 {[%clk 0:02:57.1]} 4.
exd5 {[%clk 0:02:53.6]} 4... Qxd5 {[%clk 0:02:56.3]} 5. Nf3 {[%clk 0:02:54.1]}
5... Nf6 {[%clk 0:02:54.7]} 6. Nbd2 {[%clk 0:02:51.9]} 6... cxd4 {[%clk
0:02:54.2]} 7. Bc4 {[%clk 0:02:51.8]} 7... Qd8 {[%clk 0:02:52.9]} 8. Nxd4 {[%clk
0:02:51.8]} 8... Bd7 {[%clk 0:02:51.3]} 9. N2f3 {[%clk 0:02:49.3]} 9... Nc6
{[%clk 0:02:50.9]} 10. O-O {[%clk 0:02:46]} 10... Nxd4 {[%clk 0:02:48.6]} 11.
Nxd4 {[%clk 0:02:45.6]} 11... Rc8 {[%clk 0:02:48.3]} 12. Qe2 {[%clk 0:02:43.6]}
12... Be7 {[%clk 0:02:32.7]} 13. Bf4 {[%clk 0:02:42.6]} 13... O-O {[%clk
0:02:24.5]} 14. Rad1 {[%clk 0:02:41.3]} 14... Re8 {[%clk 0:01:41.3]} 15. Rfe1
{[%clk 0:02:38.5]} 15... Qb6 {[%clk 0:01:36.7]} 16. Bb3 {[%clk 0:02:26.1]} 16...
a6 {[%clk 0:01:33.8]} 17. Rd3 {[%clk 0:02:19.2]} 17... Rcd8 {[%clk 0:01:32.4]}
18. Rg3 {[%clk 0:02:15.8]} 18... g6 {[%clk 0:01:24.5]} 19. h4 {[%clk 0:02:04.5]}
19... Nd5 {[%clk 0:01:21.2]} 20. Bg5 {[%clk 0:01:51.8]} 20... Bxg5 {[%clk
0:01:13.2]} 21. Rxg5 {[%clk 0:01:39.3]} 21... Qd6 {[%clk 0:01:04.8]} 22. h5
{[%clk 0:01:23.4]} 22... Qf4 {[%clk 0:00:47.7]} 23. Rg3 {[%clk 0:00:40.1]} 23...
Qf6 {[%clk 0:00:38.2]} 24. Bxd5 {[%clk 0:00:27.6]} 24... exd5 {[%clk 0:00:37.7]}
25. Qd1 {[%clk 0:00:27.5]} 25... Rxe1+ {[%clk 0:00:37.1]} 26. Qxe1 {[%clk
0:00:27.5]} 26... Re8 {[%clk 0:00:37.1]} 27. Qd2 {[%clk 0:00:26.8]} 27... Re4
{[%clk 0:00:24.1]} 28. h6 {[%clk 0:00:22.3]} 28... Qe7 {[%clk 0:00:18.5]} 29.
Nf3 {[%clk 0:00:20.9]} 29... Bc6 {[%clk 0:00:04.4]} 30. Rg5 {[%clk 0:00:18.5]}
30... f6 {[%clk 0:00:04.2]} 31. Rg3 {[%clk 0:00:18.1]} 31... Kf7 {[%clk
0:00:03.5]} 32. Qd3 {[%clk 0:00:17.9]} 1-0

[Event "Late-Titled-Tuesday-Blitz-August-29-2023"]
[Site "Chess.com"]
[Date "2023.08.29"]
[Round "3"]
[White "frederiksvane"]
[Black "grzechu96"]
[Result "1-0"]
[WhiteElo "2949"]
[BlackElo "2709"]
[TimeControl "180+1"]
[EndTime "14:27:45 PDT"]
[Termination "frederiksvane won on time"]

1. c4 {[%clk 0:02:59.6]} 1... c6 {[%clk 0:02:50.3]} 2. Nf3 {[%clk 0:02:57.4]}
2... d5 {[%clk 0:02:50.4]} 3. e3 {[%clk 0:02:57.9]} 3... Nf6 {[%clk 0:02:50.5]}
4. b3 {[%clk 0:02:57.7]} 4... Bf5 {[%clk 0:02:50.2]} 5. Bb2 {[%clk 0:02:56.8]}
5... e6 {[%clk 0:02:49.3]} 6. Nh4 {[%clk 0:02:49.5]} 6... Bg4 {[%clk 0:02:44.2]}
7. Be2 {[%clk 0:02:49.7]} 7... Bxe2 {[%clk 0:02:44.1]} 8. Qxe2 {[%clk
0:02:50.6]} 8... Be7 {[%clk 0:02:40.6]} 9. Nf3 {[%clk 0:02:50.3]} 9... Nbd7
{[%clk 0:02:40.8]} 10. O-O {[%clk 0:02:50.6]} 10... O-O {[%clk 0:02:40.9]} 11.
d3 {[%clk 0:02:51.1]} 11... a5 {[%clk 0:02:40.3]} 12. Nc3 {[%clk 0:02:47.7]}
12... Re8 {[%clk 0:02:38.8]} 13. Rac1 {[%clk 0:02:45.5]} 13... Qb6 {[%clk
0:02:35.5]} 14. cxd5 {[%clk 0:02:43.5]} 14... exd5 {[%clk 0:02:33.1]} 15. Nd4
{[%clk 0:02:39.9]} 15... Qa6 {[%clk 0:01:58.1]} 16. Rcd1 {[%clk 0:02:21]} 16...
Bf8 {[%clk 0:01:56.7]} 17. Qc2 {[%clk 0:02:04.6]} 17... Rac8 {[%clk 0:01:46.3]}
18. Nde2 {[%clk 0:02:03.7]} 18... Bd6 {[%clk 0:01:38.3]} 19. Ng3 {[%clk
0:02:02.7]} 19... Qb6 {[%clk 0:01:08.6]} 20. e4 {[%clk 0:01:58.7]} 20... Be5
{[%clk 0:00:48.3]} 21. Kh1 {[%clk 0:01:56]} 21... Qc5 {[%clk 0:00:38]} 22. Qd2
{[%clk 0:01:47]} 22... Bd4 {[%clk 0:00:33.8]} 23. Nf5 {[%clk 0:01:40.2]} 23...
Bxc3 {[%clk 0:00:26.4]} 24. Bxc3 {[%clk 0:01:39.9]} 24... dxe4 {[%clk
0:00:26.4]} 25. Qg5 {[%clk 0:01:27.8]} 25... Qf8 {[%clk 0:00:20.7]} 26. dxe4
{[%clk 0:01:20.1]} 26... Nxe4 {[%clk 0:00:17.3]} 27. Qxg7+ {[%clk 0:01:04.5]}
27... Qxg7 {[%clk 0:00:17.6]} 28. Bxg7 {[%clk 0:01:05.4]} 28... Rcd8 {[%clk
0:00:12.9]} 29. Bd4 {[%clk 0:01:02.1]} 29... f6 {[%clk 0:00:11.9]} 30. f3 {[%clk
0:01:00.1]} 30... Ng5 {[%clk 0:00:12]} 31. Nd6 {[%clk 0:00:57.5]} 31... Re2
{[%clk 0:00:10.7]} 32. Nxb7 {[%clk 0:00:57.7]} 32... Rb8 {[%clk 0:00:10.9]} 33.
Nxa5 {[%clk 0:00:58]} 33... Rxa2 {[%clk 0:00:09.1]} 34. Nxc6 {[%clk 0:00:57.8]}
34... Rxb3 {[%clk 0:00:09.7]} 35. Rf2 {[%clk 0:00:53.3]} 35... Rxf2 {[%clk
0:00:07.1]} 36. Bxf2 {[%clk 0:00:54.2]} 36... Nf8 {[%clk 0:00:04.2]} 37. h4
{[%clk 0:00:50.4]} 37... Nge6 {[%clk 0:00:03.6]} 38. Kh2 {[%clk 0:00:50.2]}
38... Kf7 {[%clk 0:00:03.4]} 39. Rd2 {[%clk 0:00:50.1]} 39... Ra3 {[%clk
0:00:03.3]} 40. Nb4 {[%clk 0:00:50.2]} 40... Rb3 {[%clk 0:00:02.9]} 41. Nd5
{[%clk 0:00:49.8]} 41... Rb8 {[%clk 0:00:02.8]} 42. Ne3 {[%clk 0:00:49.7]} 42...
Rd8 {[%clk 0:00:01.4]} 43. Ra2 {[%clk 0:00:49.6]} 43... Rd7 {[%clk 0:00:01.6]}
44. Nf5 {[%clk 0:00:48.5]} 44... Rc7 {[%clk 0:00:01.2]} 45. Be3 {[%clk
0:00:48.6]} 45... Ng6 {[%clk 0:00:01.4]} 46. Ra8 {[%clk 0:00:45.9]} 1-0

[Event "Late-Titled-Tuesday-Blitz-August-29-2023"]
[Site "Chess.com"]
[Date "2023.08.29"]
[Round "3"]
[White "ashookk"]
[Black "CrushingKings"]
[Result "0-1"]
[WhiteElo "2362"]
[BlackElo "2559"]
[TimeControl "180+1"]
[EndTime "14:27:45 PDT"]
[Termination "CrushingKings won by resignation"]

1. Nf3 {[%clk 0:03:00.9]} 1... Nf6 {[%clk 0:02:56.9]} 2. c4 {[%clk 0:03:00.9]}
2... g6 {[%clk 0:02:57.8]} 3. Nc3 {[%clk 0:03:00.8]} 3... Bg7 {[%clk 0:02:58.2]}
4. e4 {[%clk 0:03:01.4]} 4... d6 {[%clk 0:02:59.1]} 5. d3 {[%clk 0:03:01.8]}
5... O-O {[%clk 0:02:59.8]} 6. d4 {[%clk 0:02:54.8]} 6... e5 {[%clk 0:02:52.4]}
7. Be2 {[%clk 0:02:54]} 7... exd4 {[%clk 0:02:43.7]} 8. Nxd4 {[%clk 0:02:53.7]}
8... Re8 {[%clk 0:02:43.8]} 9. f3 {[%clk 0:02:54.1]} 9... c6 {[%clk 0:02:40.9]}
10. Bg5 {[%clk 0:02:54.4]} 10... h6 {[%clk 0:02:21.4]} 11. Bh4 {[%clk 0:02:53]}
11... g5 {[%clk 0:02:15.1]} 12. Bf2 {[%clk 0:02:52.1]} 12... d5 {[%clk
0:02:15.8]} 13. cxd5 {[%clk 0:02:47]} 13... cxd5 {[%clk 0:02:14.4]} 14. Nf5
{[%clk 0:02:42.9]} 14... Bxf5 {[%clk 0:01:59.2]} 15. exf5 {[%clk 0:02:43.8]}
15... Nc6 {[%clk 0:01:59.4]} 16. O-O {[%clk 0:02:42.5]} 16... d4 {[%clk
0:01:42]} 17. Nb5 {[%clk 0:02:39]} 17... a6 {[%clk 0:01:40.4]} 18. Na3 {[%clk
0:02:14.3]} 18... b5 {[%clk 0:01:39]} 19. Bd3 {[%clk 0:02:12.9]} 19... Qd5
{[%clk 0:01:35.2]} 20. Nc2 {[%clk 0:02:10.4]} 20... Rad8 {[%clk 0:01:30]} 21.
Qd2 {[%clk 0:02:10.3]} 21... Nh5 {[%clk 0:01:24.8]} 22. Be4 {[%clk 0:02:03.4]}
22... Rxe4 {[%clk 0:01:18]} 23. fxe4 {[%clk 0:02:03]} 23... Qxe4 {[%clk
0:01:18.6]} 24. Rae1 {[%clk 0:01:53.5]} 24... Qxf5 {[%clk 0:00:59.9]} 25. Bg3
{[%clk 0:01:53.7]} 25... Qg6 {[%clk 0:00:52.6]} 26. Rd1 {[%clk 0:01:12]} 26...
d3 {[%clk 0:00:49.6]} 27. Ne1 {[%clk 0:01:08.8]} 27... Nxg3 {[%clk 0:00:47]} 28.
hxg3 {[%clk 0:01:08.1]} 28... Bd4+ {[%clk 0:00:46.9]} 29. Rf2 {[%clk 0:01:06]}
29... Qf5 {[%clk 0:00:34.6]} 30. Nf3 {[%clk 0:01:05.3]} 30... Bxf2+ {[%clk
0:00:30.1]} 31. Qxf2 {[%clk 0:01:04.9]} 31... Nd4 {[%clk 0:00:22]} 32. Nxd4
{[%clk 0:00:46.5]} 32... Qxf2+ {[%clk 0:00:21.8]} 33. Kxf2 {[%clk 0:00:47.4]}
33... Rxd4 {[%clk 0:00:21.8]} 34. Ke3 {[%clk 0:00:48.3]} 34... Rg4 {[%clk
0:00:20.6]} 35. Kf3 {[%clk 0:00:47]} 35... Rd4 {[%clk 0:00:21.2]} 36. Ke3 {[%clk
0:00:47.3]} 36... Rd6 {[%clk 0:00:17.7]} 37. Kd2 {[%clk 0:00:46.6]} 37... Kg7
{[%clk 0:00:16.4]} 38. Rf1 {[%clk 0:00:41.3]} 38... Kg6 {[%clk 0:00:14.9]} 39.
g4 {[%clk 0:00:41.3]} 39... f6 {[%clk 0:00:15.3]} 40. Rf5 {[%clk 0:00:40.1]}
40... h5 {[%clk 0:00:15.6]} 41. Rc5 {[%clk 0:00:36.5]} 41... hxg4 {[%clk
0:00:15.6]} 42. b3 {[%clk 0:00:36.5]} 42... f5 {[%clk 0:00:16]} 43. a4 {[%clk
0:00:36.8]} 43... bxa4 {[%clk 0:00:15.1]} 44. bxa4 {[%clk 0:00:37.7]} 44... f4
{[%clk 0:00:15.6]} 45. Rc4 {[%clk 0:00:37.4]} 45... Kh5 {[%clk 0:00:15.7]} 46.
Rc8 {[%clk 0:00:36.1]} 46... Kh4 {[%clk 0:00:16]} 0-1

[Event "Late-Titled-Tuesday-Blitz-August-29-2023"]
[Site "Chess.com"]
[Date "2023.08.29"]
[Round "3"]
[White "Defend1r"]
[Black "GGuseinov"]
[Result "0-1"]
[WhiteElo "2550"]
[BlackElo "2869"]
[TimeControl "180+1"]
[EndTime "14:27:48 PDT"]
[Termination "GGuseinov won by resignation"]

1. e4 {[%clk 0:03:00.9]} 1... c5 {[%clk 0:02:59.3]} 2. Nf3 {[%clk 0:03:01.1]}
2... g6 {[%clk 0:02:59.9]} 3. c3 {[%clk 0:02:58.5]} 3... d5 {[%clk 0:02:59.6]}
4. exd5 {[%clk 0:02:57.1]} 4... Qxd5 {[%clk 0:03:00.5]} 5. d4 {[%clk 0:02:57.2]}
5... Bg7 {[%clk 0:03:01.1]} 6. dxc5 {[%clk 0:02:41]} 6... Qxc5 {[%clk 0:03:02]}
7. Be3 {[%clk 0:02:40.3]} 7... Qc7 {[%clk 0:03:02.2]} 8. Nbd2 {[%clk 0:02:35.8]}
8... Nf6 {[%clk 0:03:01.9]} 9. Nb3 {[%clk 0:02:18.9]} 9... Nc6 {[%clk
0:03:01.2]} 10. Be2 {[%clk 0:02:15.2]} 10... O-O {[%clk 0:03:00.3]} 11. O-O
{[%clk 0:02:14.4]} 11... Rd8 {[%clk 0:02:53.9]} 12. Qc1 {[%clk 0:02:14.5]} 12...
Nd5 {[%clk 0:02:50.5]} 13. Bh6 {[%clk 0:02:13]} 13... e5 {[%clk 0:02:42.4]} 14.
Bc4 {[%clk 0:01:48.4]} 14... Nce7 {[%clk 0:02:23.5]} 15. Bxg7 {[%clk 0:01:37.5]}
15... Kxg7 {[%clk 0:02:22.7]} 16. Nbd2 {[%clk 0:01:30.8]} 16... Nf4 {[%clk
0:02:18.1]} 17. Re1 {[%clk 0:01:29.9]} 17... f6 {[%clk 0:02:13.7]} 18. Qc2
{[%clk 0:01:20.7]} 18... Bf5 {[%clk 0:02:13.6]} 19. Qb3 {[%clk 0:01:19.4]} 19...
Nc6 {[%clk 0:02:08.8]} 20. Bf1 {[%clk 0:01:18.1]} 20... Nd3 {[%clk 0:01:55]} 21.
Bxd3 {[%clk 0:01:17.5]} 21... Rxd3 {[%clk 0:01:54.4]} 22. Nc4 {[%clk 0:01:15.5]}
22... Be6 {[%clk 0:01:44.5]} 23. Qa4 {[%clk 0:01:06.4]} 23... Rad8 {[%clk
0:01:35.3]} 24. Ne3 {[%clk 0:01:05.5]} 24... a6 {[%clk 0:01:27.8]} 25. h3 {[%clk
0:00:57.6]} 25... Qf7 {[%clk 0:01:27.2]} 26. Qc2 {[%clk 0:00:39.3]} 26... Bxa2
{[%clk 0:01:13.7]} 27. Qe2 {[%clk 0:00:12.5]} 27... Bb3 {[%clk 0:01:10]} 28.
Rac1 {[%clk 0:00:10.9]} 28... a5 {[%clk 0:01:06.1]} 29. c4 {[%clk 0:00:07.6]}
29... a4 {[%clk 0:01:05.4]} 30. c5 {[%clk 0:00:07.4]} 30... R8d7 {[%clk
0:00:56.4]} 31. Ng4 {[%clk 0:00:03.5]} 31... h5 {[%clk 0:00:53.4]} 32. Ngh2
{[%clk 0:00:03.4]} 32... Qd5 {[%clk 0:00:48.7]} 33. Qe4 {[%clk 0:00:03.4]} 33...
Qxe4 {[%clk 0:00:48]} 34. Rxe4 {[%clk 0:00:04.3]} 34... Rd1+ {[%clk 0:00:48.6]}
35. Re1 {[%clk 0:00:05]} 35... Rxc1 {[%clk 0:00:48.9]} 36. Rxc1 {[%clk 0:00:05]}
36... Nb4 {[%clk 0:00:49.8]} 37. Nf1 {[%clk 0:00:04.5]} 37... Nd3 {[%clk
0:00:50.3]} 38. Rb1 {[%clk 0:00:04.4]} 38... Nxc5 {[%clk 0:00:50]} 39. N1d2
{[%clk 0:00:03.2]} 39... e4 {[%clk 0:00:49.3]} 40. Nxb3 {[%clk 0:00:03.4]} 40...
Nxb3 {[%clk 0:00:50.1]} 41. Ne1 {[%clk 0:00:02.9]} 41... Rd2 {[%clk 0:00:50.5]}
42. Kf1 {[%clk 0:00:02.5]} 42... f5 {[%clk 0:00:50.6]} 43. g3 {[%clk 0:00:02.4]}
43... Kf6 {[%clk 0:00:50.2]} 44. Ng2 {[%clk 0:00:02.8]} 44... Rd3 {[%clk
0:00:49.9]} 45. Ke1 {[%clk 0:00:02.6]} 45... Nd2 {[%clk 0:00:50]} 46. Ra1 {[%clk
0:00:02.8]} 46... Nf3+ {[%clk 0:00:50.9]} 47. Kf1 {[%clk 0:00:02.6]} 47... b5
{[%clk 0:00:51.4]} 48. Ne3 {[%clk 0:00:03.1]} 48... Rb3 {[%clk 0:00:51.3]} 49.
Rb1 {[%clk 0:00:02.6]} 49... Nd2+ {[%clk 0:00:51.3]} 0-1